[Event "Hungarian U20 Junior-ch Women 2024"]
[Site "Budapest"]
[Date "2024.03.12"]
[Round "2.3"]
[White "Sipos, Stefania"]
[Black "Toth, Nikoletta"]
[Result "0-1"]
[ECO "C54"]
[WhiteElo "1885"]
[BlackElo "1962"]
[Annotator "RC"]
[PlyCount "98"]
[EventDate "2024.03.10"]
[EventCountry "HUN"]
[SourceTitle "playchess.com"]
[Source "ChessBase"]
[SourceQuality "1"]
[TimeControl "40/5400+30:1800+30"]

1. e4 {[%emt 0:00:39]} e5 {[%emt 0:02:08]} 2. Nf3 {[%emt 0:00:08]} Nc6 {[%emt 0:00:12]} 3. Bc4 {[%emt 0:00:12]} Bc5 {[%emt 0:00:12]} 4. c3 {[%emt 0:00:18]} Nf6 {[%emt 0:00:48]} 5. d4 {[%emt 0:00:20]} exd4 {[%emt 0:00:27]} 6. b4 {[%emt 0:00:19]} Bb6 {[%emt 0:02:45]} 7. e5 {[%emt 0:00:15]} Ne4 {[%emt 0:23:26]} 8. Bd5 {[%emt 0:01:21]} Nxc3 {[%emt 0:00:26]} 9. Nxc3 {[%emt 0:00:26]} dxc3 {[%emt 0:00:14]} 10. O-O {[%emt 0:01:43]} O-O {[%emt 0:00:49]} 11. Bg5 {[%emt 0:00:48]} Qe8 {[%emt 0:02:08]} 12. Re1 {[%emt 0:01:49]} Nxb4 {[%emt 0:04:04]} 13. Bb3 {[%emt 0:01:32]} Na6 {[%emt 0:09:51]} 14. Bc2 {[%emt 0:06:17]} Qe6 {[%emt 0:03:07]} 15. Bf4 {[%emt 0:16:01]} Qc6 {[%emt 0:11:13]} 16. Ng5 {[%emt 0:09:59]} h6 {[%emt 0:03:10]} 17. Nh7 {[%emt 0:06:36]} d5 {[%emt 0:03:28]} 18. Nxf8 {[%emt 0:14:16]} Kxf8 {[%emt 0:00:31]} 19. Bb3 {[%emt 0:06:11]} Be6 {[%emt 0:01:44]} 20. Qd3 {[%emt 0:06:33]} Ke7 {[%emt 0:08:57]} 21. Qh7 {[%emt 0:07:07]} g5 {[%emt 0:01:06]} 22. Bc1 {[%emt 0:03:48]} Nc5 {[%emt 0:02:26]} 23. Qxh6 {[%emt 0:03:39]} Rg8 {[%emt 0:02:03]} 24. Bc2 {[%emt 0:05:50]} g4 {[%emt 0:03:57]} 25. Qh7 {[%emt 0:01:34]} Qe8 {[%emt 0:03:13]} 26. Qh4+ {[%emt 0:01:56]} Kd7 {[%emt 0:00:18]} 27. Be3 {[%emt 0:01:37]} Kc8 {[%emt 0:00:34]} 28. Bd4 {[%emt 0:01:06]} g3 {[%emt 0:00:14]} 29. Bxc5 {[%emt 0:01:12]} gxh2+ {[%emt 0:00:19]} 30. Qxh2 {[%emt 0:00:38]} Bxc5 {[%emt 0:00:05]} 31. Qf4 {[%emt 0:00:34]} Rg4 {[%emt 0:00:30]} 32. Qf3 {[%emt 0:00:32]} Qg8 {[%emt 0:00:50]} 33. Kf1 {[%emt 0:00:55]} d4 {[%emt 0:01:54]} 34. Bf5 {[%emt 0:00:26]} Rh4 {[%emt 0:01:04]} 35. g3 {[%emt 0:00:35]} Rh6 {[%emt 0:01:08]} 36. Rab1 {[%emt 0:00:36]} c6 {[%emt 0:00:06]} 37. a4 {[%emt 0:00:27]} Kc7 {[%emt 0:00:46]} 38. Bxe6 {[%emt 0:00:16]} fxe6 {[%emt 0:00:18]} 39. a5 {[%emt 0:00:47]} Qh7 {[%emt 0:00:07]} 40. a6 {[%emt 0:00:00]} Rh1+ {[%emt 0:00:00]} 41. Qxh1 {[%emt 0:00:57]} Qxh1+ {[%emt 0:00:54]} 42. Ke2 {[%emt 0:00:03]} Qe4+ {[%emt 0:01:19]} 43. Kf1 {[%emt 0:00:24]} Qd3+ {[%emt 0:00:39]} 44. Kg2 {[%emt 0:01:06]} Qxa6 {[%emt 0:00:40]} 45. Rh1 {[%emt 0:03:07]} Be7 {[%emt 0:00:39]} 46. Ra1 {[%emt 0:02:51]} Qb6 {[%emt 0:00:29]} 47. g4 {[%emt 0:01:21]} d3 {[%emt 0:02:15]} 48. Rh7 {[%emt 0:03:05]} Qb4 {[%emt 0:01:00]} 49. Kg3 {[%emt 0:01:13]} Kb6 {[%emt 0:00:48]} 0-1

[Event "Hungarian U20 Junior-ch Women 2024"]
[Site "Budapest"]
[Date "2024.03.12"]
[Round "2.5"]
[White "Szarvas, Nora"]
[Black "Buri, Petra Zsuzsanna"]
[Result "1/2-1/2"]
[ECO "C54"]
[WhiteElo "1955"]
[BlackElo "1972"]
[Annotator "ChessBase"]
[PlyCount "77"]
[EventDate "2024.03.10"]
[EventCountry "HUN"]
[SourceTitle "playchess.com"]
[Source "ChessBase"]
[SourceQuality "1"]
[TimeControl "40/5400+30:1800+30"]

1. e4 {[%emt 0:00:35]} e5 {[%emt 0:00:44]} 2. Nf3 {[%emt 0:00:10]} Nc6 {[%emt 0:00:18]} 3. d4 {[%emt 0:00:26]} exd4 {[%emt 0:00:13]} 4. Bc4 {[%emt 0:00:12]} Bc5 {[%emt 0:03:33]} 5. c3 {[%emt 0:07:02]} Nf6 {[%emt 0:08:12]} 6. e5 {[%emt 0:02:42]} d5 {[%emt 0:00:58]} 7. Bb5 {[%emt 0:00:34]} Ne4 {[%emt 0:01:08]} 8. cxd4 {[%emt 0:01:47]} Bb6 {[%emt 0:00:35]} 9. O-O {[%emt 0:13:46]} O-O {[%emt 0:02:35]} 10. Bxc6 {[%emt 0:13:20]} bxc6 {[%emt 0:01:31]} 11. Be3 {[%emt 0:04:17]} Bg4 {[%emt 0:06:37]} 12. Nc3 {[%emt 0:05:06]} f6 {[%emt 0:07:01]} 13. Nxe4 {[%emt 0:07:40]} dxe4 {[%emt 0:00:48]} 14. Qb3+ {[%emt 0:00:09]} Qd5 {[%emt 0:15:43]} 15. Nd2 {[%emt 0:02:22]} fxe5 {[%emt 0:04:59]} 16. dxe5 {[%emt 0:03:59]} Kh8 {[%emt 0:09:54]} 17. Nc4 {[%emt 0:08:13]} Be2 {[%emt 0:07:25]} 18. Rfc1 {[%emt 0:01:47]} Bxc4 {[%emt 0:09:13]} 19. Rxc4 {[%emt 0:03:43]} Bxe3 {[%emt 0:02:15]} 20. fxe3 {[%emt 0:00:13]} Qxe5 {[%emt 0:01:41]} 21. Rxc6 {[%emt 0:04:59]} Rad8 {[%emt 0:03:57]} 22. Qc3 {[%emt 0:03:57]} Qf5 {[%emt 0:02:00]} 23. Qe1 {[%emt 0:04:29]} Rf7 {[%emt 0:02:17]} 24. Rac1 {[%emt 0:01:31]} Qd7 {[%emt 0:04:47]} 25. h3 {[%emt 0:04:36]} Kg8 {[%emt 0:01:02]} 26. Qh4 {[%emt 0:02:55]} Qd3 {[%emt 0:01:59]} 27. R6c3 {[%emt 0:00:30]} Qd2 {[%emt 0:00:33]} 28. Qxe4 {[%emt 0:01:46]} Qf2+ {[%emt 0:00:07]} 29. Kh2 {[%emt 0:00:23]} Qxb2 {[%emt 0:00:28]} 30. R1c2 {[%emt 0:00:55]} Qb6 {[%emt 0:00:32]} 31. Rc6 {[%emt 0:00:35]} Qb7 {[%emt 0:01:00]} 32. Qc4 {[%emt 0:00:39]} Rdd7 {[%emt 0:00:40]} 33. Qe6 {[%emt 0:00:36]} Rde7 {[%emt 0:00:09]} 34. Qb3 {[%emt 0:00:36]} Qxb3 {[%emt 0:01:33]} 35. axb3 {[%emt 0:00:04]} Rxe3 {[%emt 0:00:52]} 36. Rxc7 {[%emt 0:00:07]} Rxb3 {[%emt 0:00:34]} 37. Rxf7 {[%emt 0:00:14]} Kxf7 {[%emt 0:00:06]} 38. Rc7+ {[%emt 0:00:03]} Kg6 {[%emt 0:00:10]} 39. Rxa7 {[%emt 0:00:07]} 1/2-1/2

[Event "Hungarian U20 Junior-ch Women 2024"]
[Site "Budapest"]
[Date "2024.03.13"]
[Round "3.1"]
[White "Buri, Petra Zsuzsanna"]
[Black "Toth, Lili"]
[Result "0-1"]
[ECO "C68"]
[WhiteElo "1972"]
[BlackElo "2199"]
[Annotator "RC"]
[PlyCount "70"]
[EventDate "2024.03.10"]
[EventCountry "HUN"]
[SourceTitle "playchess.com"]
[Source "ChessBase"]
[SourceQuality "1"]
[TimeControl "40/5400+30:1800+30"]

1. e4 {[%emt 0:25:02]} e5 {[%emt 0:00:49]} 2. Nf3 {[%emt 0:00:11]} Nc6 {[%emt 0:00:09]} 3. Bb5 {[%emt 0:00:04]} a6 {[%emt 0:05:43]} 4. Bxc6 {[%emt 0:00:12]} dxc6 {[%emt 0:00:07]} 5. O-O {[%emt 0:00:13]} Qf6 {[%emt 0:04:26]} 6. d4 {[%emt 0:01:57]} exd4 {[%emt 0:09:48]} 7. Qxd4 {[%emt 0:05:42]} Bd7 {[%emt 0:03:41]} 8. Bg5 {[%emt 0:03:24]} Qxd4 {[%emt 0:00:14]} 9. Nxd4 {[%emt 0:00:08]} f6 {[%emt 0:00:04]} 10. Be3 {[%emt 0:02:06]} O-O-O {[%emt 0:00:53]} 11. f3 {[%emt 0:01:44]} c5 {[%emt 0:03:25]} 12. Nb3 {[%emt 0:04:13]} b6 {[%emt 0:02:30]} 13. Nc3 {[%emt 0:00:44]} Bd6 {[%emt 0:00:06]} 14. Nd5 {[%emt 0:04:23]} f5 {[%emt 0:09:38]} 15. Nd2 {[%emt 0:05:38]} fxe4 {[%emt 0:14:45]} 16. Nxe4 {[%emt 0:00:33]} Be5 {[%emt 0:00:17]} 17. Bf4 {[%emt 0:02:32]} Bd4+ {[%emt 0:07:44]} 18. Kh1 {[%emt 0:01:24]} Bb5 {[%emt 0:03:53]} 19. Nxc7 {[%emt 0:01:00]} Bxf1 {[%emt 0:02:05]} 20. Rxf1 {[%emt 0:00:17]} Nf6 {[%emt 0:25:11]} 21. Ne6 {[%emt 0:05:59]} Nxe4 {[%emt 0:01:36]} 22. fxe4 {[%emt 0:01:20]} Rde8 {[%emt 0:02:29]} 23. Ng5 {[%emt 0:03:14]} Kd7 {[%emt 0:00:28]} 24. c3 {[%emt 0:00:24]} Bf6 {[%emt 0:00:16]} 25. Rd1+ {[%emt 0:00:17]} Kc6 {[%emt 0:01:17]} 26. Rd6+ {[%emt 0:00:40]} Kb7 {[%emt 0:00:07]} 27. Ne6 {[%emt 0:01:09]} Re7 {[%emt 0:01:02]} 28. e5 {[%emt 0:00:39]} Rhe8 {[%emt 0:00:10]} 29. Nd8+ {[%emt 0:01:14]} Kc8 {[%emt 0:00:55]} 30. Nc6 {[%emt 0:00:16]} Rd7 {[%emt 0:00:12]} 31. g4 {[%emt 0:04:32]} Rxd6 {[%emt 0:00:21]} 32. exd6 {[%emt 0:00:44]} Kd7 {[%emt 0:00:11]} 33. g5 {[%emt 0:00:40]} Kxc6 {[%emt 0:00:21]} 34. gxf6 {[%emt 0:00:23]} gxf6 {[%emt 0:00:02]} 35. Kg2 {[%emt 0:02:40]} Re2+ {[%emt 0:00:07]} 0-1

[Event "Hungarian U20 Junior-ch Women 2024"]
[Site "Budapest"]
[Date "2024.03.13"]
[Round "3.2"]
[White "Karacsonyi, Luca"]
[Black "Szarvas, Nora"]
[Result "1-0"]
[ECO "B22"]
[WhiteElo "1956"]
[BlackElo "1955"]
[Annotator "RC"]
[PlyCount "97"]
[EventDate "2024.03.10"]
[EventCountry "HUN"]
[SourceTitle "playchess.com"]
[Source "ChessBase"]
[SourceQuality "1"]
[TimeControl "40/5400+30:1800+30"]

1. e4 {[%emt 0:00:40]} c5 {[%emt 0:00:39]} 2. c3 {[%emt 0:00:12]} Nf6 {[%emt 0:00:10]} 3. e5 {[%emt 0:00:18]} Nd5 {[%emt 0:00:07]} 4. d4 {[%emt 0:00:05]} cxd4 {[%emt 0:00:07]} 5. Nf3 {[%emt 0:00:05]} Nc6 {[%emt 0:00:21]} 6. cxd4 {[%emt 0:00:31]} d6 {[%emt 0:00:59]} 7. Bc4 {[%emt 0:00:13]} Nb6 {[%emt 0:01:20]} 8. Bb5 {[%emt 0:00:27]} dxe5 {[%emt 0:02:33]} 9. Nxe5 {[%emt 0:00:33]} Bd7 {[%emt 0:00:59]} 10. Nxd7 {[%emt 0:00:22]} Qxd7 {[%emt 0:00:27]} 11. Nc3 {[%emt 0:00:17]} Rd8 {[%emt 0:00:36]} 12. Be3 {[%emt 0:01:59]} e6 {[%emt 0:06:23]} 13. O-O {[%emt 0:01:21]} Be7 {[%emt 0:02:01]} 14. Qb3 {[%emt 0:02:44]} O-O {[%emt 0:02:52]} 15. Rfd1 {[%emt 0:09:44]} Nd5 {[%emt 0:13:16]} 16. Nxd5 {[%emt 0:08:58]} Qxd5 {[%emt 0:01:23]} 17. Qxd5 {[%emt 0:03:41]} Rxd5 {[%emt 0:00:51]} 18. Bxc6 {[%emt 0:03:15]} bxc6 {[%emt 0:00:08]} 19. Rac1 {[%emt 0:00:22]} Rc8 {[%emt 0:02:13]} 20. Rd2 {[%emt 0:14:11]} g5 {[%emt 0:10:18]} 21. Rdc2 {[%emt 0:10:02]} Rd6 {[%emt 0:02:09]} 22. g3 {[%emt 0:05:27]} h6 {[%emt 0:13:36]} 23. Rc4 {[%emt 0:09:39]} Bf6 {[%emt 0:06:03]} 24. b4 {[%emt 0:05:52]} a6 {[%emt 0:08:58]} 25. f4 {[%emt 0:00:53]} gxf4 {[%emt 0:01:50]} 26. gxf4 {[%emt 0:00:23]} Kf8 {[%emt 0:01:54]} 27. a4 {[%emt 0:04:46]} Ke7 {[%emt 0:01:11]} 28. Kf1 {[%emt 0:01:41]} Kd7 {[%emt 0:01:13]} 29. b5 {[%emt 0:00:56]} axb5 {[%emt 0:00:16]} 30. axb5 {[%emt 0:00:08]} Bd8 {[%emt 0:01:55]} 31. Ke2 {[%emt 0:03:51]} Ba5 {[%emt 0:03:39]} 32. Kf3 {[%emt 0:01:34]} Bd8 {[%emt 0:04:03]} 33. Bd2 {[%emt 0:01:19]} Bb6 {[%emt 0:02:18]} 34. Ke3 {[%emt 0:01:01]} f6 {[%emt 0:04:08]} 35. Bb4 {[%emt 0:01:13]} Rd5 {[%emt 0:00:15]} 36. bxc6+ {[%emt 0:00:26]} Kc7 {[%emt 0:00:07]} 37. Rg1 {[%emt 0:01:12]} Kb8 {[%emt 0:02:04]} 38. Rg7 {[%emt 0:01:18]} Rc7 {[%emt 0:00:54]} 39. Rg8+ {[%emt 0:01:21]} Rc8 {[%emt 0:01:02]} 40. Rg6 {[%emt 0:00:00]} e5 {[%emt 0:00:00]} 41. fxe5 {[%emt 0:05:39]} Rxe5+ {[%emt 0:11:02]} 42. Kf4 {[%emt 0:11:19]} Rh5 {[%emt 0:06:46]} 43. Bd6+ {[%emt 0:03:28]} Bc7 {[%emt 0:04:03]} 44. Rb4+ {[%emt 0:02:03]} Ka8 {[%emt 0:00:06]} 45. Bxc7 {[%emt 0:01:44]} Rxc7 {[%emt 0:00:07]} 46. Rg2 {[%emt 0:05:06]} Ra5 {[%emt 0:03:10]} 47. d5 {[%emt 0:01:56]} Ka7 {[%emt 0:03:35]} 48. Rd2 {[%emt 0:02:06]} Ra6 {[%emt 0:01:33]} 49. d6 {[%emt 0:00:43]} 1-0

[Event "Hungarian U20 Junior-ch Women 2024"]
[Site "Budapest"]
[Date "2024.03.13"]
[Round "3.3"]
[White "Toth, Nikoletta"]
[Black "Nandin-Erdene, Davaademberel"]
[Result "1-0"]
[ECO "A45"]
[WhiteElo "1962"]
[BlackElo "1978"]
[Annotator "ChessBase"]
[PlyCount "75"]
[EventDate "2024.03.10"]
[EventCountry "HUN"]
[SourceTitle "playchess.com"]
[Source "ChessBase"]
[SourceQuality "1"]
[TimeControl "40/5400+30:1800+30"]

1. d4 {[%emt 0:04:57]} Nf6 {[%emt 0:01:03]} 2. Bf4 {[%emt 0:00:09]} g6 {[%emt 0:01:10]} 3. e3 {[%emt 0:01:24]} Bg7 {[%emt 0:00:26]} 4. Nf3 {[%emt 0:00:05]} d6 {[%emt 0:00:26]} 5. Be2 {[%emt 0:00:40]} O-O {[%emt 0:02:00]} 6. h3 {[%emt 0:01:03]} b6 {[%emt 0:00:56]} 7. Bh2 {[%emt 0:02:12]} c5 {[%emt 0:02:58]} 8. c3 {[%emt 0:00:08]} Bb7 {[%emt 0:00:30]} 9. O-O {[%emt 0:00:42]} Nbd7 {[%emt 0:01:01]} 10. Nbd2 {[%emt 0:00:44]} a6 {[%emt 0:04:09]} 11. a4 {[%emt 0:00:09]} Rc8 {[%emt 0:03:36]} 12. Re1 {[%emt 0:03:05]} Re8 {[%emt 0:02:34]} 13. e4 {[%emt 0:19:00]} cxd4 {[%emt 0:12:42]} 14. cxd4 {[%emt 0:04:05]} e5 {[%emt 0:19:47]} 15. Bd3 {[%emt 0:18:24]} exd4 {[%emt 0:08:23]} 16. Nc4 {[%emt 0:02:24]} Ne5 {[%emt 0:09:38]} 17. Ncxe5 {[%emt 0:01:50]} dxe5 {[%emt 0:00:15]} 18. Bxe5 {[%emt 0:00:31]} Nh5 {[%emt 0:02:32]} 19. Bh2 {[%emt 0:05:37]} Bf8 {[%emt 0:03:04]} 20. Bb1 {[%emt 0:07:03]} Bc5 {[%emt 0:01:44]} 21. e5 {[%emt 0:11:15]} Ng7 {[%emt 0:03:24]} 22. Bg3 {[%emt 0:03:53]} Ne6 {[%emt 0:01:40]} 23. Be4 {[%emt 0:01:13]} Bxe4 {[%emt 0:04:29]} 24. Rxe4 {[%emt 0:00:05]} d3 {[%emt 0:03:16]} 25. b4 {[%emt 0:00:59]} Qd5 {[%emt 0:03:43]} 26. Qe1 {[%emt 0:04:09]} Bd4 {[%emt 0:01:07]} 27. Rd1 {[%emt 0:03:11]} Bc3 {[%emt 0:00:16]} 28. Qe3 {[%emt 0:00:30]} d2 {[%emt 0:04:36]} 29. Kh2 {[%emt 0:02:42]} a5 {[%emt 0:02:29]} 30. bxa5 {[%emt 0:00:54]} Bxa5 {[%emt 0:00:14]} 31. Bh4 {[%emt 0:01:25]} Rc1 {[%emt 0:00:47]} 32. Rxd2 {[%emt 0:00:49]} Bxd2 {[%emt 0:00:07]} 33. Nxd2 {[%emt 0:00:08]} Ng7 {[%emt 0:00:49]} 34. Bf6 {[%emt 0:01:00]} Nf5 {[%emt 0:00:37]} 35. Qf4 {[%emt 0:00:39]} Rc6 {[%emt 0:00:56]} 36. g4 {[%emt 0:00:35]} Rxf6 {[%emt 0:00:23]} 37. exf6 {[%emt 0:00:17]} Rxe4 {[%emt 0:00:31]} 38. Qb8+ {[%emt 0:00:13]} 1-0

[Event "Hungarian U20 Junior-ch Women 2024"]
[Site "Budapest"]
[Date "2024.03.13"]
[Round "3.4"]
[White "Juhasz, Judit"]
[Black "Sipos, Stefania"]
[Result "1-0"]
[ECO "B32"]
[WhiteElo "2002"]
[BlackElo "1885"]
[Annotator "RC"]
[PlyCount "73"]
[EventDate "2024.03.10"]
[EventCountry "HUN"]
[SourceTitle "playchess.com"]
[Source "ChessBase"]
[SourceQuality "1"]
[TimeControl "40/5400+30:1800+30"]

1. e4 {[%emt 0:00:33]} c5 {[%emt 0:00:39]} 2. Nf3 {[%emt 0:00:04]} Nc6 {[%emt 0:00:04]} 3. d4 {[%emt 0:00:07]} cxd4 {[%emt 0:00:04]} 4. Nxd4 {[%emt 0:00:03]} e5 {[%emt 0:00:11]} 5. Nb5 {[%emt 0:00:16]} a6 {[%emt 0:00:12]} 6. N5c3 {[%emt 0:01:21]} Nf6 {[%emt 0:07:55]} 7. Bg5 {[%emt 0:10:20]} Be7 {[%emt 0:07:03]} 8. Bxf6 {[%emt 0:00:57]} Bxf6 {[%emt 0:00:40]} 9. a4 {[%emt 0:01:02]} d6 {[%emt 0:06:55]} 10. Nd5 {[%emt 0:00:38]} O-O {[%emt 0:02:06]} 11. c3 {[%emt 0:02:08]} Be6 {[%emt 0:09:30]} 12. Bc4 {[%emt 0:05:06]} Kh8 {[%emt 0:12:28]} 13. h4 {[%emt 0:16:17]} Be7 {[%emt 0:07:20]} 14. Nd2 {[%emt 0:01:59]} f5 {[%emt 0:02:24]} 15. exf5 {[%emt 0:01:54]} Bxf5 {[%emt 0:06:40]} 16. g4 {[%emt 0:12:01]} Be6 {[%emt 0:02:24]} 17. g5 {[%emt 0:04:19]} Bf5 {[%emt 0:09:33]} 18. Qe2 {[%emt 0:00:50]} e4 {[%emt 0:03:44]} 19. Nxe4 {[%emt 0:07:05]} Ne5 {[%emt 0:03:00]} 20. f3 {[%emt 0:06:43]} Bxe4 {[%emt 0:11:03]} 21. fxe4 {[%emt 0:00:05]} Nf3+ {[%emt 0:00:34]} 22. Kd1 {[%emt 0:00:04]} b5 {[%emt 0:01:02]} 23. Bb3 {[%emt 0:01:32]} Rb8 {[%emt 0:02:08]} 24. a5 {[%emt 0:01:18]} Qe8 {[%emt 0:03:08]} 25. Nc7 {[%emt 0:07:33]} Qc6 {[%emt 0:01:29]} 26. Ne6 {[%emt 0:00:17]} Ne5 {[%emt 0:00:31]} 27. Bd5 {[%emt 0:00:53]} Qd7 {[%emt 0:00:32]} 28. Rf1 {[%emt 0:06:21]} Rxf1+ {[%emt 0:00:27]} 29. Qxf1 {[%emt 0:00:04]} Qe8 {[%emt 0:00:33]} 30. Qe2 {[%emt 0:00:35]} Rc8 {[%emt 0:00:30]} 31. Kd2 {[%emt 0:02:26]} Nc4+ {[%emt 0:00:27]} 32. Kc2 {[%emt 0:00:07]} Bd8 {[%emt 0:00:32]} 33. Rf1 {[%emt 0:00:12]} Be7 {[%emt 0:00:26]} 34. h5 {[%emt 0:01:39]} Nxa5 {[%emt 0:00:35]} 35. h6 {[%emt 0:00:55]} g6 {[%emt 0:00:28]} 36. Qd3 {[%emt 0:00:15]} Nc6 {[%emt 0:00:23]} 37. Bxc6 {[%emt 0:00:06]} 1-0

[Event "Hungarian U20 Junior-ch Women 2024"]
[Site "Budapest"]
[Date "2024.03.13"]
[Round "3.5"]
[White "Sulyok, Eszter"]
[Black "Kiraly, Lilla Virag"]
[Result "1/2-1/2"]
[ECO "E20"]
[WhiteElo "2082"]
[BlackElo "1923"]
[Annotator "RC"]
[PlyCount "127"]
[EventDate "2024.03.10"]
[EventCountry "HUN"]
[SourceTitle "playchess.com"]
[Source "ChessBase"]
[SourceQuality "1"]
[TimeControl "40/5400+30:1800+30"]

1. d4 {[%emt 0:00:52]} Nf6 {[%emt 0:00:44]} 2. c4 {[%emt 0:00:07]} e6 {[%emt 0:00:17]} 3. Nc3 {[%emt 0:00:06]} Bb4 {[%emt 0:00:23]} 4. f3 {[%emt 0:00:07]} Nh5 {[%emt 0:08:45]} 5. Nh3 {[%emt 0:06:07]} c5 {[%emt 0:06:21]} 6. e4 {[%emt 0:14:51]} Nc6 {[%emt 0:16:43]} 7. d5 {[%emt 0:02:46]} Nd4 {[%emt 0:08:11]} 8. Bg5 {[%emt 0:22:48]} Qa5 {[%emt 0:18:56]} 9. Bd2 {[%emt 0:00:45]} Qc7 {[%emt 0:04:57]} 10. a3 {[%emt 0:03:11]} Ba5 {[%emt 0:01:34]} 11. Nb5 {[%emt 0:16:38]} Nxb5 {[%emt 0:02:10]} 12. cxb5 {[%emt 0:10:21]} exd5 {[%emt 0:02:04]} 13. exd5 {[%emt 0:00:31]} Qe5+ {[%emt 0:02:35]} 14. Be2 {[%emt 0:01:24]} Bxd2+ {[%emt 0:05:56]} 15. Qxd2 {[%emt 0:00:06]} O-O {[%emt 0:08:04]} 16. g4 {[%emt 0:00:29]} Nf6 {[%emt 0:00:51]} 17. O-O-O {[%emt 0:00:37]} Re8 {[%emt 0:01:36]} 18. Bc4 {[%emt 0:03:30]} Qe3 {[%emt 0:01:58]} 19. g5 {[%emt 0:02:16]} Qxd2+ {[%emt 0:01:23]} 20. Kxd2 {[%emt 0:00:22]} d6 {[%emt 0:01:26]} 21. gxf6 {[%emt 0:02:12]} Bxh3 {[%emt 0:00:14]} 22. Rhg1 {[%emt 0:02:53]} g6 {[%emt 0:00:17]} 23. Rge1 {[%emt 0:00:06]} Bg2 {[%emt 0:02:33]} 24. Re3 {[%emt 0:03:21]} Rxe3 {[%emt 0:01:29]} 25. Kxe3 {[%emt 0:00:03]} Re8+ {[%emt 0:00:32]} 26. Kf2 {[%emt 0:00:04]} Bh3 {[%emt 0:00:08]} 27. Rd3 {[%emt 0:03:34]} Bf5 {[%emt 0:00:32]} 28. Re3 {[%emt 0:00:27]} Rxe3 {[%emt 0:01:00]} 29. Kxe3 {[%emt 0:00:04]} g5 {[%emt 0:01:19]} 30. f4 {[%emt 0:01:28]} g4 {[%emt 0:00:25]} 31. Bd3 {[%emt 0:01:08]} Bc8 {[%emt 0:01:57]} 32. f5 {[%emt 0:00:11]} h6 {[%emt 0:00:33]} 33. Kf4 {[%emt 0:00:12]} b6 {[%emt 0:00:29]} 34. Kxg4 {[%emt 0:00:11]} Bb7 {[%emt 0:00:20]} 35. Bc4 {[%emt 0:00:17]} Kh7 {[%emt 0:00:24]} 36. Kf4 {[%emt 0:00:07]} Bc8 {[%emt 0:00:23]} 37. Bd3 {[%emt 0:00:51]} Bd7 {[%emt 0:00:20]} 38. a4 {[%emt 0:02:29]} Bc8 {[%emt 0:00:18]} 39. Ke3 {[%emt 0:00:10]} h5 {[%emt 0:01:07]} 40. h4 {[%emt 0:00:00]} Kh6 {[%emt 0:00:00]} 41. Kd2 {[%emt 0:07:51]} Bb7 {[%emt 0:01:20]} 42. Be4 {[%emt 0:00:10]} Bc8 {[%emt 0:01:00]} 43. Kc3 {[%emt 0:00:08]} Bd7 {[%emt 0:00:28]} 44. a5 {[%emt 0:02:05]} Bxb5 {[%emt 0:19:22]} 45. b4 {[%emt 0:07:03]} Be2 {[%emt 0:04:33]} 46. axb6 {[%emt 0:03:45]} axb6 {[%emt 0:00:13]} 47. Bc2 {[%emt 0:03:59]} Kh7 {[%emt 0:01:14]} 48. bxc5 {[%emt 0:03:38]} bxc5 {[%emt 0:00:11]} 49. Be4 {[%emt 0:01:35]} Kg8 {[%emt 0:00:23]} 50. Kd2 {[%emt 0:01:50]} Bg4 {[%emt 0:00:13]} 51. Ke3 {[%emt 0:00:30]} Kf8 {[%emt 0:00:56]} 52. Bd3 {[%emt 0:00:42]} Ke8 {[%emt 0:00:37]} 53. Kf4 {[%emt 0:00:25]} Bd1 {[%emt 0:01:38]} 54. Bc4 {[%emt 0:00:17]} Bc2 {[%emt 0:02:09]} 55. Kg5 {[%emt 0:00:25]} Kf8 {[%emt 0:01:20]} 56. Kf4 {[%emt 0:02:39]} Kg8 {[%emt 0:00:23]} 57. Kg5 {[%emt 0:00:14]} Kh7 {[%emt 0:00:09]} 58. Kf4 {[%emt 0:00:28]} Kh6 {[%emt 0:00:22]} 59. Bb5 {[%emt 0:00:39]} Bb3 {[%emt 0:00:21]} 60. Ke4 {[%emt 0:00:21]} Kh7 {[%emt 0:00:17]} 61. Be2 {[%emt 0:00:48]} Kh6 {[%emt 0:02:38]} 62. Bb5 {[%emt 0:00:06]} Kh7 {[%emt 0:01:44]} 63. Be2 {[%emt 0:00:07]} Kh6 {[%emt 0:00:35]} 64. Bb5 {[%emt 0:00:06]} 1/2-1/2

[Event "Hungarian U20 Junior-ch Women 2024"]
[Site "Budapest"]
[Date "2024.03.14"]
[Round "4.1"]
[White "Toth, Lili"]
[Black "Kiraly, Lilla Virag"]
[Result "1/2-1/2"]
[ECO "E28"]
[WhiteElo "2199"]
[BlackElo "1923"]
[Annotator "RC"]
[PlyCount "99"]
[EventDate "2024.03.10"]
[EventCountry "HUN"]
[SourceTitle "playchess.com"]
[Source "ChessBase"]
[SourceQuality "1"]
[TimeControl "40/5400+30:1800+30"]

1. d4 {[%emt 0:00:39]} Nf6 {[%emt 0:00:41]} 2. c4 {[%emt 0:00:08]} e6 {[%emt 0:00:09]} 3. Nc3 {[%emt 0:00:10]} Bb4 {[%emt 0:00:16]} 4. e3 {[%emt 0:00:15]} O-O {[%emt 0:00:52]} 5. a3 {[%emt 0:00:17]} Bxc3+ {[%emt 0:01:29]} 6. bxc3 {[%emt 0:00:14]} c5 {[%emt 0:02:44]} 7. Ne2 {[%emt 0:03:50]} Nc6 {[%emt 0:06:36]} 8. Ng3 {[%emt 0:00:31]} d6 {[%emt 0:05:06]} 9. e4 {[%emt 0:00:58]} Re8 {[%emt 0:25:40]} 10. Be2 {[%emt 0:14:06]} b6 11. Ra2 {[%emt 0:08:13]} Ba6 {[%emt 0:10:12]} 12. h4 {[%emt 0:01:43]} Na5 {[%emt 0:12:29]} 13. Bg5 {[%emt 0:02:49]} h6 14. Bd3 Bxc4 {[%emt 0:13:38]} 15. Bxc4 {[%emt 0:09:09]} Nxc4 {[%emt 0:00:44]} 16. Qe2 b5 {[%emt 0:05:02]} 17. a4 {[%emt 0:11:17]} hxg5 {[%emt 0:07:03]} 18. hxg5 {[%emt 0:01:23]} Qa5 {[%emt 0:03:07]} 19. gxf6 {[%emt 0:27:13]} Qxc3+ {[%emt 0:00:11]} 20. Kf1 {[%emt 0:00:05]} Qc1+ {[%emt 0:00:45]} 21. Qe1 {[%emt 0:00:04]} Qxe1+ {[%emt 0:00:24]} 22. Kxe1 {[%emt 0:00:02]} cxd4 {[%emt 0:01:16]} 23. axb5 {[%emt 0:02:15]} Reb8 {[%emt 0:00:54]} 24. fxg7 {[%emt 0:02:22]} Kxg7 {[%emt 0:00:16]} 25. Rh5 {[%emt 0:00:14]} Ne5 {[%emt 0:02:13]} 26. Ke2 {[%emt 0:03:16]} d3+ {[%emt 0:00:32]} 27. Ke3 {[%emt 0:03:36]} Rxb5 {[%emt 0:00:21]} 28. Rg5+ {[%emt 0:00:29]} Kf6 {[%emt 0:00:24]} 29. f4 {[%emt 0:00:39]} d2 {[%emt 0:00:54]} 30. Kxd2 {[%emt 0:00:33]} Nc4+ {[%emt 0:00:51]} 31. Kc3 {[%emt 0:00:37]} d5 {[%emt 0:00:22]} 32. exd5 {[%emt 0:01:03]} exd5 {[%emt 0:00:11]} 33. Re2 {[%emt 0:00:26]} Rh8 {[%emt 0:01:01]} 34. Ne4+ {[%emt 0:01:54]} Ke7 {[%emt 0:00:31]} 35. Nd2+ {[%emt 0:00:06]} Kd7 {[%emt 0:00:28]} 36. Nxc4 {[%emt 0:00:06]} Rc8 {[%emt 0:00:22]} 37. Kd4 {[%emt 0:04:42]} Rxc4+ {[%emt 0:00:06]} 38. Ke5 {[%emt 0:00:03]} Rc6 {[%emt 0:00:36]} 39. Kd4 {[%emt 0:02:03]} Rd6 {[%emt 0:00:32]} 40. Rf5 {[%emt 0:00:00]} f6 {[%emt 0:00:00]} 41. g4 {[%emt 0:01:45]} Rb4+ {[%emt 0:03:07]} 42. Kc3 {[%emt 0:00:25]} a5 {[%emt 0:02:17]} 43. Ra2 {[%emt 0:07:34]} d4+ {[%emt 0:03:01]} 44. Kd2 {[%emt 0:01:39]} d3 {[%emt 0:05:27]} 45. Raxa5 {[%emt 0:06:51]} Rb2+ {[%emt 0:01:45]} 46. Kd1 {[%emt 0:00:40]} Rg2 {[%emt 0:08:26]} 47. Rad5 {[%emt 0:02:51]} Rxg4 {[%emt 0:03:40]} 48. Rxd6+ {[%emt 0:01:48]} Kxd6 {[%emt 0:00:08]} 49. Rxf6+ {[%emt 0:00:04]} Kd5 {[%emt 0:00:45]} 50. Kd2 {[%emt 0:02:15]} 1/2-1/2